Cogmind - Beta 10.2 @@@ ROGUE MODE // 2021.10.22 @ 01:00:09 Player: TheGreatBorealis Result: Destroyed by S-43 Plague with Heavy Machine Gun Performance ------------- Evolutions (8) 4000 Regions Visited (13) 2600 Robots Destroyed (92) 460 Value Destroyed (4257) 4257 Prototype IDs (11) 220 Alien Tech Used (0) 0 Bonus (3540) 3540 TOTAL SCORE: 15077 Bonus ------- High Alert Combat Kills 62 Hacked Protovariant 1000 Scanned by Researcher 500 Acquired SGEMP 2000 Friendly Fire -22 Cogmind --------- Core Integrity 0/1450 Matter 300/300 Energy 79/100 System Corruption 2% Temperature Cool (0) Movement Core (50) Location -2/Research Parts ------- > --- POWER (2) -------- (None) > --- PROPULSION (8) --- (None) > --- UTILITY (10) ----- Advanced Signal Interpreter Advanced Terrain Scan Processor > --- WEAPON (3) ------- (None) > --- INVENTORY (4) ---- Coil Gun SGEMP Prototype Peak State ------------ > --- POWER ------------ Cooled Antimatter Reactor > --- PROPULSION ------- Armored Heavy Treads Advanced Heavy Treads Advanced Heavy Treads Advanced Heavy Treads > --- UTILITY ---------- Improved Coolant Injector Large Storage Unit Energy Well Advanced Signal Interpreter Melee Analysis Suite Improved Target Analyzer Heavy Armor Plating > --- WEAPON ----------- Quantum Rifle Quantum Rifle Great Maul > --- INVENTORY -------- Medium Treads Improved Heavy Treads Improved Heavy Treads Improved Heat Shielding Improved Targeting Computer Gamma Bomb Array [Rating: 125] Favorites ----------- Power Fission Core Engine Light Ion Engine Power Core Fission Core Reactor Light Antimatter Reactor Propulsion Aluminum Leg Treads Advanced Treads Leg Aluminum Leg Hover Unit Cooled Antigrav System Flight Unit Impulse Thruster Utility Improved Sensor Array Device Improved Sensor Array Storage Large Storage Unit Processor Advanced Signal Interpreter Protection Hardened Heavy Armor Plating Weapon Assault Cannon Energy Gun Quantum Rifle Energy Cannon Enhanced Nova Cannon Ballistic Gun Gauss Rifle Ballistic Cannon Assault Cannon Launcher Fusion Bomb Launcher Impact Weapon Great Maul Build | -11 -10 -10 -9 -8 -7 -6 -5 -4 -4 -4 -3 -3 -2 ------- Run | Scr Mat Min Mat Mat Fac Fac Fac Fac Was Fac Res Tes Res Slots Evolved 16 | . . . 2 2 2 2 2 2 . . 2 . 2 Power 1 | . . . . . . . . . . . 1 . . Propulsion 6 | . . . 2 . 1 . 1 1 . . 1 . . Utility 8 | . . . . 1 1 2 1 1 . . . . 2 Weapon 1 | . . . . 1 . . . . . . . . . Parts Attached 171 | . 4 3 4 25 18 22 11 16 3 28 8 16 13 Power 13 | . 1 . . 2 3 1 1 . . 1 . 2 2 Engine 5 | . 1 . . 2 2 . . . . . . . . Core 4 | . . . . . 1 1 1 . . 1 . . . Reactor 4 | . . . . . . . . . . . . 2 2 Propulsion 77 | . 2 1 3 12 7 7 5 10 1 14 2 8 5 Treads 25 | . . . 2 3 1 1 2 3 . 5 2 5 1 Leg 46 | . 2 1 1 9 6 6 3 7 1 9 . 1 . Wheel . | . . . . . . . . . . . . . . Hover 4 | . . . . . . . . . . . . 2 2 Flight 2 | . . . . . . . . . . . . . 2 Utility 42 | . . 1 1 3 5 11 2 3 2 5 4 2 3 Device 19 | . . 1 . 1 2 8 1 2 . 2 . . 2 Storage 6 | . . . . 1 1 . . . . 1 2 1 . Processor 5 | . . . 1 . . 1 . . . 1 1 . 1 Hackware . | . . . . . . . . . . . . . . Protection 12 | . . . . 1 2 2 1 1 2 1 1 1 . Artifact . | . . . . . . . . . . . . . . Weapon 39 | . 1 1 . 8 3 3 3 3 . 8 2 4 3 Energy Gun 6 | . . . . 1 . . . . . 1 2 . 2 Energy Cannon 2 | . . . . 1 . . . . . . . . 1 Ballistic Gun 22 | . 1 . . 3 2 2 3 3 . 6 . 2 . Ballistic Cannon 6 | . . 1 . 3 1 1 . . . . . . . Launcher 2 | . . . . . . . . . . 1 . 1 . Special Weapon . | . . . . . . . . . . . . . . Impact Weapon 1 | . . . . . . . . . . . . 1 . Slashing Weapon . | . . . . . . . . . . . . . . Piercing Weapon . | . . . . . . . . . . . . . . Special Melee Weapon . | . . . . . . . . . . . . . . Unidentified Prototypes 7 | . . . . 1 . . . 2 . . . 3 1 Parts Lost 83 | . . . . 9 3 7 1 1 3 27 1 18 13 Power 6 | . . . . 2 . . . . . 2 . 1 1 Propulsion 36 | . . . . 3 2 3 1 . 2 11 1 7 6 Utility 19 | . . . . 1 1 2 . . 1 6 . 6 2 Weapon 22 | . . . . 3 . 2 . 1 . 8 . 4 4 Highest Loss Streak 26 | . . . . 4 3 3 1 1 3 26 1 14 7 Average Slot Usage (%) 85 | . 85 87 100 93 98 98 88 93 84 83 47 55 30 Engine 3 | . 14 14 11 8 4 4 . . . . . . . Core 1 | . . . . . 2 . 5 5 5 4 . . . Treads 7 | . . . 16 9 7 5 5 10 6 4 4 15 1 Leg 23 | . 28 28 27 26 29 26 27 25 21 24 8 . . Device 9 | . . 2 5 6 6 22 13 15 13 13 4 3 1 Storage 6 | . 14 14 11 9 7 6 5 5 5 4 7 7 . Processor 6 | . . . 5 9 7 6 5 5 5 7 13 9 7 Protection 3 | . . . . . 6 1 4 9 9 7 . 3 . Energy Gun 1 | . 10 . . 1 . . . . . . 7 7 . Ballistic Gun 11 | . 17 24 11 10 15 11 10 15 15 13 . . 2 Ballistic Cannon 5 | . . 3 11 12 7 7 5 . . . . . . Naked Turns . | . . . . . . . . . . . . . . Heaviest Build 77 | 11 11 16 16 29 46 62 62 74 74 77 38 71 53 Greatest Support 270 | 20 20 20 33 38 47 68 88 110 110 125 88 270 112 Greatest Overweight (x) 2 | . . . . . 1 1 1 . 1 . . 1 2 Average Overweight (x) . | . . . . . . . . . . . . . . Largest Inventory Capacity 12 | . 6 6 6 8 10 10 10 10 10 12 4 10 4 Average Capacity 8 | . 6 6 6 6 8 10 10 10 10 10 4 8 4 Most Carried 12 | . 6 6 5 8 10 10 10 10 10 12 4 10 4 Average Carried 7 | . 6 6 4 6 8 7 8 9 9 7 4 6 3 Final Capacity 10 | 6 6 6 6 8 10 10 10 10 10 4 4 4 4 Final Carried 10 | 6 6 6 5 8 10 10 10 10 10 4 4 3 3 Class Distribution -------------------- 37% | Scavenger-Skirmisher 29% | Mutant 17% | Scavenger-Tank 8% | Gunner 3% | Scavenger-Mutant Dominant Class ---------------- Mutant | -10/Materials Mutant | -10/Mines Mutant | -9/Materials Gunner | -8/Materials Scavenger-Skirmisher | -7/Factory Scavenger-Skirmisher | -6/Factory Scavenger-Skirmisher | -5/Factory Scavenger-Tank | -4/Factory Scavenger-Tank | -4/Waste Scavenger-Tank | -4/Factory Mutant | -3/Research Mutant | -3/Testing Mutant | -2/Research Resources | -11 -10 -10 -9 -8 -7 -6 -5 -4 -4 -4 -3 -3 -2 ----------- Run | Scr Mat Min Mat Mat Fac Fac Fac Fac Was Fac Res Tes Res Matter Collected 4077 | 200 . 82 69 948 757 273 471 424 . 485 65 211 92 Remotely . | . . . . . . . . . . . . . . Salvage Created 4061 | . 46 . 53 891 692 298 302 565 . 867 82 165 100 Parts 226 | . 6 . 7 43 39 21 19 23 . 57 2 7 2 Haulers Intercepted 2 | . . . . . . . . 1 . . . 1 . Recyclers Shooed 2 | . . . . . . . . 1 . 1 . . . Parts Field Recycled . | . . . . . . . . . . . . . . Retrieved Matter . | . . . . . . . . . . . . . . Parts Self-Destructed . | . . . . . . . . . . . . . . Prevented . | . . . . . . . . . . . . . . Kills | -11 -10 -10 -9 -8 -7 -6 -5 -4 -4 -4 -3 -3 -2 ------- Run | Scr Mat Min Mat Mat Fac Fac Fac Fac Was Fac Res Tes Res Combat Hostiles Destroyed 77 | . 3 . 4 19 13 8 5 6 . 16 1 1 1 Guns 52 | . 3 . 3 8 7 6 5 6 . 12 1 1 . Cannons 18 | . . . 1 11 3 2 . . . . . . 1 AOE 7 | . . . . . 3 . . . . 4 . . . Classes Destroyed 13 | . 1 . . 3 4 1 . 1 . 1 . 2 . Worker 5 | . . . . 3 . 1 . . . 1 . . . Builder 3 | . . . . . . . . . . 3 . . . Hauler 2 | . . . . . . . . 1 . . . 1 . Recycler 1 | . . . . . 1 . . . . . . . . Operator 2 | . . . . . 2 . . . . . . . . Watcher 1 | . . . . . 1 . . . . . . . . Swarmer 17 | . 3 . 4 . . 3 . . . 7 . . . Grunt 31 | . . . . 14 7 . . 5 . 4 . . 1 Researcher 1 | . . . . . . . . . . . . 1 . Sentry 14 | . . . . 5 3 1 1 1 . 2 1 . . Hunter 2 | . . . . . . 2 . . . . . . . Programmer 12 | . . . . . 3 2 4 . . 3 . . . Striker 1 | . . . . . . . . . . . . 1 . Best Kill Streak 17 | . 3 . 3 9 5 2 2 2 . 17 1 1 1 Combat Bots Only 14 | . 3 . 3 6 4 2 2 2 . 14 1 1 1 Max Kills in Single Turn 3 | . 1 . 1 1 3 1 1 2 . 3 1 1 1 Gunslinging 1 | . . . . . . . . 1 . 1 . . . Exploded 3 | . . . . . 3 . . . . 3 . . . Melee . | . . . . . . . . . . . . . . Uniques/NPCs Destroyed . | . . . . . . . . . . . . . . Combat | -11 -10 -10 -9 -8 -7 -6 -5 -4 -4 -4 -3 -3 -2 -------- Run | Scr Mat Min Mat Mat Fac Fac Fac Fac Was Fac Res Tes Res Damage Taken 19179 | . 47 . 34 1458 864 1538 528 832 248 4602 497 5229 3302 Core 2971 | . 9 . 17 161 . 162 39 . . 465 . 651 1467 Absorbed by Shields . | . . . . . . . . . . . . . . Reduced by Siege Mode 12 | . . . . . . . . . . . . 12 . Core Remaining (%) 82 | 100 . 96 95 70 100 80 96 . . 59 . 49 . Volleys Fired 266 | . 4 . 6 74 52 35 17 20 . 36 5 12 5 Largest 3 | . 2 . 2 3 3 3 3 3 . 3 2 2 3 Hottest 244 | . 70 . 64 172 97 116 79 101 . 148 188 188 244 Shots Fired 716 | . 8 . 12 198 139 102 51 60 . 101 10 23 12 Gun 516 | . 8 . 6 106 88 61 51 60 . 99 10 19 8 Cannon 194 | . . . 6 92 51 41 . . . . . . 4 Launcher 6 | . . . . . . . . . . 2 . 4 . Special . | . . . . . . . . . . . . . . Kinetic 656 | . 4 . 12 187 139 102 51 60 . 95 . 2 4 Thermal 51 | . 4 . . 8 . . . . . 4 10 17 8 Explosive 4 | . . . . . . . . . . . . 4 . Electromagnetic 5 | . . . . 3 . . . . . 2 . . . Robot Hit Streak 28 | . 4 . 5 14 12 10 7 19 . 28 9 14 6 Robot Miss Streak 5 | . 3 . 2 5 3 5 2 2 . 3 1 1 1 Penetration Max 1 | . . . . . 1 . . 1 . 1 . . 1 Secondary Targets 7 | . . . . . . . . 2 . 5 . . . Max Gunslinging Chain 1 | . . . . . . . . 1 . 1 . . . Shots Hit Robots 494 | . 4 . 7 147 84 70 31 50 . 65 9 19 8 Core Hits 244 | . 3 . 6 69 35 30 12 23 . 47 6 8 5 Critical Hits 17 | . . . . . 1 1 . 4 . 11 . . . Critical Kills 6 | . . . . . 1 1 . 1 . 3 . . . Critical Parts Destroyed 10 | . . . . . . . . 3 . 7 . . . Melee Attacks 34 | . . . . . . . . . . . . 34 . Impact 34 | . . . . . . . . . . . . 34 . Slashing . | . . . . . . . . . . . . . . Piercing . | . . . . . . . . . . . . . . Sneak Attacks 1 | . . . . . . . . . . . . 1 . Combat Hostiles . | . . . . . . . . . . . . . . Follow-up Attacks . | . . . . . . . . . . . . . . Damage Inflicted 11642 | . 54 . 104 2177 2099 1142 657 1288 . 2589 269 976 287 Guns 7476 | . 54 . 60 1010 1245 768 657 1288 . 1606 261 378 149 Cannons 2192 | . . . 44 1167 488 360 . . . . . . 133 Explosions 1646 | . . . . . 366 . . . . 978 . 302 . Melee 257 | . . . . . . . . . . . . 257 . Ramming 71 | . . . . . . 14 . . . 5 8 39 5 Kinetic 8546 | . 28 . 104 1994 1733 1128 657 1288 . 1508 . 48 58 Thermal 1136 | . 26 . . 122 . . . . . 173 261 330 224 Explosive 1344 | . . . . . 366 . . . . 676 . 302 . Electromagnetic 288 | . . . . 61 . . . . . 227 . . . Impact 257 | . . . . . . . . . . . . 257 . Slashing . | . . . . . . . . . . . . . . Piercing . | . . . . . . . . . . . . . . Highest Corruption 33 | . . . . . 3 1 1 . . 5 4 33 2 Average Corruption 4 | . . . . . 2 1 1 . . 4 4 11 1 Corruption Purged . | . . . . . . . . . . . . . . Effects 59 | . . . . . 12 2 1 . . 6 2 36 . Message Errors 18 | . . . . . 3 . 1 . . 1 1 12 . Matter Fused 9 | . . . . . 1 . . . . . . 8 . Heat Flow Errors 3 | . . . . . 1 . . . . 1 . 1 . Energy Discharges 3 | . . . . . . . . . . . 1 2 . Data Loss (minor) 8 | . . . . . 4 1 . . . 2 . 1 . Data Loss (major) 1 | . . . . . . . . . . . . 1 . Misfires 1 | . . . . . . . . . . . . 1 . Misdirections 3 | . . . . . . . . . . . . 3 . Targeting Errors 12 | . . . . . 2 1 . . . 2 . 7 . Weapon Failures 1 | . . . . . 1 . . . . . . . . Overload Shots . | . . . . . . . . . . . . . . Overflow Damage 211 | . . . . 1 86 . . . . 65 . 59 . Projectiles 72 | . . . . 1 71 . . . . . . . . Explosions 93 | . . . . . 15 . . . . 65 . 13 . Melee 46 | . . . . . . . . . . . . 46 . Knockbacks 46 | . . . 2 35 7 2 . . . . . . . Impact . | . . . . . . . . . . . . . . Kinetic 40 | . . . 2 29 7 2 . . . . . . . Secondary 6 | . . . . 6 . . . . . . . . . Self-Inflicted Damage 199 | . . . . . 46 6 . . . 136 . 10 1 Shots 7 | . . . . . 2 . . . . 5 . . . Rammed 14 | . . . . . . 2 . . . 1 3 5 3 Targets Rammed 15 | . . . . . . 2 . . . 2 3 5 3 Kicked 1 | . . . . . . . . . . 1 . . . Crushed . | . . . . . . . . . . . . . . Highest Temperature 459 | . 36 . . 394 210 325 . 12 . 248 162 182 459 Average Temperature 93 | . 19 . . 108 78 109 . 5 . 49 66 96 200 Received Heat Transfer 1968 | . . . . 756 231 114 18 183 . 477 90 . 99 Effects 12 | . . . . 4 . 5 . . . . . . 3 Shutdowns 2 | . . . . . . . . . . . . . 2 Energy Bleed 1 | . . . . . . 1 . . . . . . . Interference 8 | . . . . 4 . 4 . . . . . . . Damage (minor) 1 | . . . . . . . . . . . . . 1 Siege Activations 1 | . . . . . . . . . . . . 1 . Total Turns 2 | . . . . . . . . . . . . 2 . Longest Duration 2 | . . . . . . . . . . . . 2 . Robots Corrupted . | . . . . . . . . . . . . . . Combat Hostiles . | . . . . . . . . . . . . . . Parts Fried 1 | . . . . 1 . . . . . . . . . Impact Corruptions 2 | . . . . . . . . . . . . 2 . Robots Melted . | . . . . . . . . . . . . . . Combat Hostiles . | . . . . . . . . . . . . . . Parts Melted 2 | . . . 1 . . . . . . 1 . . . Heat Transferred 1567 | . 74 . . 296 . . . . . 198 333 444 222 Parts Sabotaged . | . . . . . . . . . . . . . . Parts Stolen . | . . . . . . . . . . . . . . Parts Stripped . | . . . . . . . . . . . . . . Power Chain Reactions 1 | . . . . . . . . . . 1 . . . Missiles Intercepted . | . . . . . . . . . . . . . . Alert | -11 -10 -10 -9 -8 -7 -6 -5 -4 -4 -4 -3 -3 -2 ------- Run | Scr Mat Min Mat Mat Fac Fac Fac Fac Was Fac Res Tes Res Peak Influence 537 | . 99 38 129 367 365 272 178 222 43 537 274 207 69 Initial 224 | . . 38 14 53 153 140 73 61 28 9 224 153 13 Average 125 | . 25 38 95 217 124 152 89 86 23 119 232 124 25 Maximum Alert Level 2 | . . . . 1 1 1 . 1 . 2 1 1 . Low Security (%) 78 | . 100 100 100 27 86 75 100 96 100 78 . 96 100 Level 1 19 | . . . . 72 13 24 . 3 . 1 100 3 . Level 2 2 | . . . . . . . . . . 20 . . . Level 3 . | . . . . . . . . . . . . . . Level 4 . | . . . . . . . . . . . . . . Level 5 . | . . . . . . . . . . . . . . High Security . | . . . . . . . . . . . . . . Max Security . | . . . . . . . . . . . . . . Squads Dispatched 33 | . . 1 . 4 6 5 3 1 . 2 1 10 . Investigation 4 | . . 1 . . . . 1 . . . . 2 . Extermination 10 | . . . . . 4 1 2 . . 1 1 1 . Reinforcement 14 | . . . . 4 2 1 . 1 . 1 . 5 . Assault 2 | . . . . . . . . . . . . 2 . Garrison 3 | . . . . . . 3 . . . . . . . Intercept . | . . . . . . . . . . . . . . Construction Impeded 1 | . . . . . . . . . . 1 . . . Haulers Reinforced 1 | . . . . . . . . 1 . . . . . Stealth | -11 -10 -10 -9 -8 -7 -6 -5 -4 -4 -4 -3 -3 -2 --------- Run | Scr Mat Min Mat Mat Fac Fac Fac Fac Was Fac Res Tes Res Distress Signals 8 | . . . . 3 . 1 . . . . . 3 1 Communications Jammed . | . . . . . . . . . . . . . . Distress Signals . | . . . . . . . . . . . . . . Times Spotted 162 | . 5 . 8 35 19 11 6 8 4 25 2 11 28 Peak Tracking Total 24 | . 4 . 4 6 4 3 2 5 4 10 2 6 24 Tactical Retreats 14 | . . . 1 4 . 1 . 1 . 2 . 3 2 Traps | -11 -10 -10 -9 -8 -7 -6 -5 -4 -4 -4 -3 -3 -2 ------- Run | Scr Mat Min Mat Mat Fac Fac Fac Fac Was Fac Res Tes Res Traps Triggered 7 | . 1 . . . . 1 2 1 . . 1 . 1 Indirectly . | . . . . . . . . . . . . . . Trap Hack Attempts . | . . . . . . . . . . . . . . Triggered . | . . . . . . . . . . . . . . Disarmed . | . . . . . . . . . . . . . . Reprogrammed . | . . . . . . . . . . . . . . Reused . | . . . . . . . . . . . . . . Traps Extracted . | . . . . . . . . . . . . . . Installed . | . . . . . . . . . . . . . . Triggered . | . . . . . . . . . . . . . . Machines | -11 -10 -10 -9 -8 -7 -6 -5 -4 -4 -4 -3 -3 -2 ---------- Run | Scr Mat Min Mat Mat Fac Fac Fac Fac Was Fac Res Tes Res Machines Disabled 27 | . . . . . 12 . 1 . . 12 . 2 . Max in Single Turn 6 | . . . . . 3 . 1 . . 6 . 1 . Machines Sabotaged . | . . . . . . . . . . . . . . Garrisons Compromised . | . . . . . . . . . . . . . . Overloaded Fab Kills . | . . . . . . . . . . . . . . Fab Network Shutdowns . | . . . . . . . . . . . . . . Hacking | -11 -10 -10 -9 -8 -7 -6 -5 -4 -4 -4 -3 -3 -2 --------- Run | Scr Mat Min Mat Mat Fac Fac Fac Fac Was Fac Res Tes Res Machines Accessed 21 | . 1 1 . 1 5 1 5 . . 3 . 3 1 Terminals 11 | . 1 . . 1 2 . 2 . . 1 . 3 1 Fabricators . | . . . . . . . . . . . . . . Repair Stations 5 | . . . . . 1 . 2 . . 2 . . . Recycling Units 1 | . . . . . . 1 . . . . . . . Scanalyzers 3 | . . . . . 2 . 1 . . . . . . Garrison Access . | . . . . . . . . . . . . . . Total Hacks 54 | . 3 1 . 5 18 2 10 . . 7 . 6 2 Successful 32 | . 1 1 . 3 13 1 5 . . 4 . 2 2 Failed 22 | . 2 . . 2 5 1 5 . . 3 . 4 . Catastrophic 5 | . 1 . . . . 1 1 . . . . 2 . Database Lockouts . | . . . . . . . . . . . . . . Manual 1 | . . . . . 1 . . . . . . . . Terminals 32 | . 3 . . 5 10 . 4 . . 2 . 6 2 Fabricators . | . . . . . . . . . . . . . . Repair Stations 11 | . . . . . 1 . 5 . . 5 . . . Recycling Units 2 | . . . . . . 2 . . . . . . . Scanalyzers 8 | . . . . . 7 . 1 . . . . . . Garrison Access . | . . . . . . . . . . . . . . Terminal Hacks 19 | . 1 1 . 3 7 . 2 . . 1 . 2 2 Prototype ID Bank 2 | . 1 . . 1 . . . . . . . . . Open Door 1 | . . 1 . . . . . . . . . . . Alert Level 3 | . . . . . 1 . 1 . . . . . 1 Unreport Threat 2 | . . . . . 2 . . . . . . . . Locate Traps 2 | . . . . . 1 . . . . 1 . . . Security Status 1 | . . . . 1 . . . . . . . . . Patrol Status 1 | . . . . . . . . . . . . . 1 Investigation Status 1 | . . . . . 1 . . . . . . . . Reinforcement Status 1 | . . . . . 1 . . . . . . . . Recall Reinforcements 1 | . . . . . 1 . . . . . . . . Hauler Manifests 1 | . . . . 1 . . . . . . . . . Zone Layout 1 | . . . . . . . 1 . . . . . . Protovariant Controls 2 | . . . . . . . . . . . . 2 . Fabricator Hacks . | . . . . . . . . . . . . . . Repair Station Hacks 6 | . . . . . . . 3 . . 3 . . . Scan Component 4 | . . . . . . . 2 . . 2 . . . Repair 2 | . . . . . . . 1 . . 1 . . . Recycling Unit Hacks 1 | . . . . . . 1 . . . . . . . Retrieve Matter 1 | . . . . . . 1 . . . . . . . Scanalyzer 6 | . . . . . 6 . . . . . . . . Insert Component 3 | . . . . . 3 . . . . . . . . Analyze 3 | . . . . . 3 . . . . . . . . Garrison Access Hacks . | . . . . . . . . . . . . . . Unauthorized Hacks . | . . . . . . . . . . . . . . Terminals . | . . . . . . . . . . . . . . Fabricators . | . . . . . . . . . . . . . . Repair Stations . | . . . . . . . . . . . . . . Recycling Units . | . . . . . . . . . . . . . . Scanalyzers . | . . . . . . . . . . . . . . Garrison Access . | . . . . . . . . . . . . . . Data Cores Recovered 1 | . . . . . 1 . . . . . . . . Used . | . . . . . . . . . . . . . . Hacking Detections 19 | . 1 . . 1 5 1 5 . . 3 . 2 1 Full Trace Events 2 | . . . . . . . 1 . . . . 1 . Feedback Events . | . . . . . . . . . . . . . . Feedback Blocked . | . . . . . . . . . . . . . . Robot Schematics Acquired . | . . . . . . . . . . . . . . Robots Built . | . . . . . . . . . . . . . . Matter . | . . . . . . . . . . . . . . Time . | . . . . . . . . . . . . . . Total Robot Build Rating . | . . . . . . . . . . . . . . Part Schematics Acquired 3 | . . . . . 3 . . . . . . . . Parts Built . | . . . . . . . . . . . . . . Matter . | . . . . . . . . . . . . . . Time . | . . . . . . . . . . . . . . Total Part Build Rating . | . . . . . . . . . . . . . . Parts Repaired 2 | . . . . . . . 1 . . 1 . . . Time 90 | . . . . . . . 22 . . 68 . . . Parts Recycled . | . . . . . . . . . . . . . . Recycled Matter . | . . . . . . . . . . . . . . Retrieved Matter . | . . . . . . . . . . . . . . Retrieved Components . | . . . . . . . . . . . . . . Parts Scanalyzed 3 | . . . . . 3 . . . . . . . . Part Schematics Acquired 3 | . . . . . 3 . . . . . . . . Parts Damaged . | . . . . . . . . . . . . . . Bothacking | -11 -10 -10 -9 -8 -7 -6 -5 -4 -4 -4 -3 -3 -2 ------------ Run | Scr Mat Min Mat Mat Fac Fac Fac Fac Was Fac Res Tes Res Used RIF Installer . | . . . . . . . . . . . . . . Robots Hacked . | . . . . . . . . . . . . . . Non-combat . | . . . . . . . . . . . . . . Combat . | . . . . . . . . . . . . . . Robot Hacks Applied . | . . . . . . . . . . . . . . Relay Couplers Released 3 | . . . . . . . . . . 3 . . . Programmers 3 | . . . . . . . . . . 3 . . . Robots Rewired . | . . . . . . . . . . . . . . Allies Hacked . | . . . . . . . . . . . . . . Hacks Repelled . | . . . . . . . . . . . . . . Allies | -11 -10 -10 -9 -8 -7 -6 -5 -4 -4 -4 -3 -3 -2 -------- Run | Scr Mat Min Mat Mat Fac Fac Fac Fac Was Fac Res Tes Res Total Allies . | . . . . . . . . . . . . . . Largest Group . | . . . . . . . . . . . . . . Highest-Rated Group . | . . . . . . . . . . . . . . Highest-Rated Ally . | . . . . . . . . . . . . . . Total Orders . | . . . . . . . . . . . . . . Ally Attacks . | . . . . . . . . . . . . . . Total Damage . | . . . . . . . . . . . . . . Kills . | . . . . . . . . . . . . . . Allies Corrupted . | . . . . . . . . . . . . . . Allies Melted . | . . . . . . . . . . . . . . Intel | -11 -10 -10 -9 -8 -7 -6 -5 -4 -4 -4 -3 -3 -2 ------- Run | Scr Mat Min Mat Mat Fac Fac Fac Fac Was Fac Res Tes Res Robot Analysis Total . | . . . . . . . . . . . . . . Derelict Logs Recovered 1 | . . 1 . . . . . . . . . . . Drone Launches . | . . . . . . . . . . . . . . Drone Recoveries . | . . . . . . . . . . . . . . Exploration | -11 -10 -10 -9 -8 -7 -6 -5 -4 -4 -4 -3 -3 -2 ------------- Run | Scr Mat Min Mat Mat Fac Fac Fac Fac Was Fac Res Tes Res Turns Passed 7337 | . 174 213 235 952 1759 774 641 527 127 714 257 676 288 Spaces Moved 4372 | 1 100 174 169 467 980 427 418 315 82 420 128 339 352 Core 226 | . . . . . . . . . . 83 5 77 61 Treads 346 | . . . . . . . . . . . 123 223 . Legs 3472 | 1 100 174 169 467 980 427 418 315 82 337 . 2 . Wheels . | . . . . . . . . . . . . . . Hover 320 | . . . . . . . . . . . . 37 283 Flight 8 | . . . . . . . . . . . . . 8 Fastest Speed 40 | 120 120 120 120 120 120 120 120 120 120 50 50 46 40 Average Speed 117 | 120 120 120 120 120 122 122 124 120 129 106 165 128 62 Slowest Speed 170 | 120 120 120 120 120 153 152 150 120 150 120 170 170 150 Overloaded Moves . | . . . . . . . . . . . . . . Propulsion Burnouts . | . . . . . . . . . . . . . . Robots Hopped 1 | . . . . . . . . . . . . . 1 Cave-ins Triggered 4 | . . . . . . . . . . . . 4 . Exploration Rate (%) 25 | 2 29 64 19 42 25 11 12 7 74 14 4 38 16 Regions Visited 13 Branch Regions 2 Pre-discovered Areas 1 | . . 1 . . . . . . . . . . . Known Exits Taken 7 | . . . 1 . 1 1 1 . . 1 1 1 . Unknown Exits Taken 4 | 1 1 1 . 1 . . . . . . . . . Scrap Searched 1 | . . 1 . . . . . . . . . . . Spaces Dug 26 | . . . . . 3 . . . . 3 . 20 . Terrain Destroyed 185 | . . . . 8 33 3 1 10 . 51 . 78 1 Melee 20 | . . . . . . . . . . . . 20 . Projectile 53 | . . . . 8 7 3 1 10 . 22 . 1 1 AOE 112 | . . . . . 26 . . . . 29 . 57 . Terrain Rammed 1 | . . . . . . . . . . . . 1 . Walls Destroyed . | . . . . . . . . . . . . . . Machines Disabled . | . . . . . . . . . . . . . . Actions | -11 -10 -10 -9 -8 -7 -6 -5 -4 -4 -4 -3 -3 -2 --------- Run | Scr Mat Min Mat Mat Fac Fac Fac Fac Was Fac Res Tes Res Total 5980 | . 145 178 189 718 1456 609 501 427 102 608 158 484 405 Wait 999 | . 35 . 6 134 380 114 45 49 17 114 15 60 30 Move 4358 | . 99 173 168 466 979 426 417 315 81 419 127 338 350 Hop 1 | . . . . . . . . . . . . . 1 Pick Up 49 | . 1 . 3 8 9 4 5 8 1 5 . 5 . Fast Attach 67 | . 4 2 . 8 4 2 2 3 2 7 8 14 11 Attach 47 | . . . 2 7 2 11 4 3 1 14 . 2 1 Detach 9 | . . . . . 1 4 . 1 . 1 . 1 1 Swap 57 | . . 1 2 10 12 9 5 10 . 7 . . 1 Drop 73 | . 2 2 2 11 17 2 4 18 . 3 . 10 2 Fire 266 | . 4 . 6 74 52 35 17 20 . 36 5 12 5 Melee 34 | . . . . . . . . . . . . 34 . Ram 5 | . . . . . . . . . . . . 2 3 Kick 4 | . . . . . . 2 . . . 2 . . . Crush 7 | . . . . . . . . . . . 3 4 . Escape Stasis 2 | . . . . . . . 2 . . . . . . Rewire 2 | . . . . . . . . . . . . 2 . Trap . | . . . . . . . . . . . . . . Miscellaneous . | . . . . . . . . . . . . . . Route ------- -11/Scrapyard -10/Materials -10/Mines -9/Materials (discovered 2 exits: *Mat / *Sto) -8/Materials -7/Factory -6/Factory -5/Factory -4/Factory -4/Waste -4/Factory -3/Research -3/Testing -2/Research History --------- Turn | Location | Event 1 | -11/Scrapyard | Discovered new exit (range 0) 1 | -11/Scrapyard | Entered Materials 168 | -10/Materials | Discovered new exit (range 6) 175 | -10/Materials | Entered Mines 180 | -10/Mines | Learned location of Zion (-7) 225 | -10/Mines | Met a Derelict bent on vengeance 233 | -10/Mines | Found a hidden stash of uninstalled traps 311 | -10/Mines | Build established: Mutant 330 | -10/Mines | Met a Derelict shopkeep closing up shop 375 | -10/Mines | Discovered new exit (range 12) 388 | -10/Mines | Entered Materials 388 | -9/Materials | Evolved 2 slots: Propulsion x2 423 | -9/Materials | Discovered new exit (range 6) 500 | -9/Materials | Identified exit to Storage 595 | -9/Materials | Discovered new exit (range 15) 618 | -9/Materials | Identified exit to Materials 623 | -9/Materials | Entered another Materials area 623 | -8/Materials | Evolved 2 slots: Utility x1, Weapon x1 901 | -8/Materials | Lost 3 parts (1p2w) 1341 | -8/Materials | Lost 4 parts (1p1n1u1w) 1521 | -8/Materials | Discovered new exit (range 16) 1575 | -8/Materials | Entered Factory 1575 | -7/Factory | Evolved 2 slots: Propulsion x1, Utility x1 1853 | -7/Factory | Build established: Scavenger-Skirmisher 3134 | -7/Factory | Lost 3 parts (2n1u) 3221 | -7/Factory | Discovered new exit (range 16) 3332 | -7/Factory | Identified exit to Factory 3334 | -7/Factory | Entered another Factory area 3334 | -6/Factory | Evolved 2 slots: Utility x2 3460 | -6/Factory | Garrison activated, responded to threat 3970 | -6/Factory | Lost 3 parts (1u2w) 4028 | -6/Factory | Discovered new exit (range 16) 4107 | -6/Factory | Identified exit to Factory 4108 | -6/Factory | Entered another Factory area 4108 | -5/Factory | Evolved 2 slots: Propulsion x1, Utility x1 4545 | -5/Factory | Repaired Hrd. Heavy Armor Plating 4710 | -5/Factory | Discovered new exit (range 6) 4745 | -5/Factory | Identified exit to Factory 4749 | -5/Factory | Entered another Factory area 4749 | -4/Factory | Evolved 2 slots: Propulsion x1, Utility x1 5136 | -4/Factory | Build established: Scavenger-Tank 5276 | -4/Factory | Sucked down chute 5276 | -4/Factory | Entered Waste 5286 | -4/Waste | Spotted C-40 Crusher 5340 | -4/Waste | Spotted C-40 Crusher 5344 | -4/Waste | Spotted C-40 Crusher 5347 | -4/Waste | Spotted C-40 Crusher 5353 | -4/Waste | Crushed by Compactor (1 part destroyed) 5355 | -4/Waste | Spotted C-40 Crusher 5359 | -4/Waste | Crushed by Compactor (1 part destroyed, 2 dropped) 5362 | -4/Waste | Crushed by Compactor (0 parts destroyed, 1 dropped) 5363 | -4/Waste | Crushed by Compactor (0 parts destroyed, 1 dropped) 5368 | -4/Waste | Crushed by Compactor (0 parts destroyed, 1 dropped) 5377 | -4/Waste | Discovered new exit (range 16) 5383 | -4/Waste | Spotted C-40 Crusher 5390 | -4/Waste | Lost 3 parts (2n1u) 5399 | -4/Waste | Found Gamma Bomb Array 5402 | -4/Waste | Identified exit to Factory 5403 | -4/Waste | Entered Factory 5605 | -4/Factory | Repaired Gamma Bomb Array 6015 | -4/Factory | Destroyed 14 combat bots 6095 | -4/Factory | Lost 26 parts (2p11n5u8w) 6110 | -4/Factory | Discovered new exit (range 12) 6117 | -4/Factory | Identified exit to Research 6117 | -4/Factory | Entered Research 6117 | -3/Research | Evolved 2 slots: Power x1, Propulsion x1 6260 | -3/Research | Build established: Mutant 6319 | -3/Research | Discovered new exit (range 4) 6324 | -3/Research | Identified exit to Testing 6374 | -3/Research | Entered Testing 6376 | -3/Testing | Spotted PP-LRWDT9UX8F 6421 | -3/Testing | Protovariant out of control (PD-TRHXBTADQ2) 6421 | -3/Testing | Unleashed a protovariant (PD-TRHXBTADQ2) 6477 | -3/Testing | Spotted PD-TRHXBTADQ2 6574 | -3/Testing | Protovariant out of control (PP-LRWDT9UX8F) 6574 | -3/Testing | Unleashed a protovariant (PP-LRWDT9UX8F) 6618 | -3/Testing | Spotted Striker 6716 | -3/Testing | Spotted Striker 6737 | -3/Testing | Crushed by falling debris 6737 | -3/Testing | System corruption reached 10% 6738 | -3/Testing | Destroyed Striker 6743 | -3/Testing | Crushed by falling debris 6748 | -3/Testing | Spotted Alpha 7 6774 | -3/Testing | Lost 3 parts (1p2u) 6785 | -3/Testing | Crushed by falling debris 6843 | -3/Testing | Crushed by falling debris 6858 | -3/Testing | Found Fusion Bomb Launcher 6901 | -3/Testing | Scanned by Researcher 6939 | -3/Testing | Stole the SGEMP Prototype 7019 | -3/Testing | System corruption reached 30% 7034 | -3/Testing | Discovered new exit (range 15) 7041 | -3/Testing | Core integrity fell below 50% 7048 | -3/Testing | Identified exit to Research 7050 | -3/Testing | Entered Research 7050 | -2/Research | Evolved 2 slots: Utility x2 7060 | -2/Research | Lost 14 parts (7n4u3w) 7266 | -2/Research | Lost 6 parts (2n1u3w) 7303 | -2/Research | Spotted B-90 Cyclops 7317 | -2/Research | Core integrity fell below 50% 7324 | -2/Research | Core integrity fell below 20% 7338 | -2/Research | Destroyed by S-43 Plague with Heavy Machine Gun Last Messages --------------- 07294_ Com. Particle Reactor destroyed. 07296_ Slug penetrates Wall. 07297_ Penetrated by Slug. 07308_ Acquired Enh. Quantum Rifle. 07312_ Adv. Reaction Control System destroyed. 07315_ Enh. Quantum Rifle destroyed. 07316_ Slammed into S-43 Plague. 07316_ Adv. Signal Interpreter permanently disabled. 07316_ Destabilizing: Short circuit. 07317_ Slammed into S-43 Plague. 07317_ Adv. Terrain Scan Processor permanently disabled. 07317_ Destabilizing: Short circuit. 07318_ Penetrated by Slug. 07319_ Slug penetrates Wall. 07320_ Penetrated by Slug. 07324_ B-90 Cyclops activates siege mode. 07326_ Impulse Thruster destroyed. 07328_ Slammed into P-80 Master. 07336_ K-01 Serf destroyed. 07336_ P-80 Master resets P-80 Master, system corruption cleaned. Map ----- +----------------------------------------------------+ | ? ??????????????????????????????????????????????? | | # #??????????????????????????????????????????????? | | # #??????????????????????????????????????????????? | | # #??????????????????????????????????????????????? | | #??????????????????????????????????????????????? | | #??????????????????????????????????????????????? | | !"?####+#???????????????????????????????????????? | | # #? ??????????????????????????????????? | | # ! / ???????????????????????????????????? | | # #???????????????????????????????????????? | | " #???? ??????????????????????????????????? | | # " #???? ??????????????????????????????????? | | # #?? #???? ??????????????????????????????????? | | # #????###???# #?????????????????????????????????? | | # #??????????# #?????????????????????????????????? | | # #??????????# #?????????????????????????????????? | | #/######?????# #?????????????????????????????????? | | # #?????# #?????????????????????????????????? | | # #######k################??????????????????? | | # # u +?????? ??????????? | | # # #???? !??????????? | | #"" # #?? #?????????? | | #"" # s # ???????????? | | #"" / s t ; ?????????????? | | #"Y # ss * u#??????????????????? | | #"" # p @ #??????????????????? | | #"" ##########+######## ##??????????????????? | | #"" #???????# ?????? #???????????????????? | | # #???????# ?????A #???????????????????? | | # #???????# ??? g#???????????????????? | | ########???????#! #??? #???????????????????? | | ???????????????##########??? #???????????????????? | | ?????????????????????????????#???????????????????? | | ?????????????????????????????????????????????????? | | ?????????????????????????????????????????????????? | | ?????????????????????????????????????????????????? | | ?????????????????????????????????????????????????? | | ?????????????????????????????????????????????????? | | ?????????????????????????????????????????????????? | | ?????????????????????????????????????????????????? | | ?????????????????????????????????????????????????? | | ?????????????????????????????????????????????????? | | ?????????????????????????????????????????????????? | | ?????????????????????????????????????????????????? | | ?????????????????????????????????????????????????? | | ?????????????????????????????????????????????????? | | ?????????????????????????????????????????????????? | | ?????????????????????????????????????????????????? | | ?????????????????????????????????????????????????? | | ?????????????????????????????????????????????????? | +----------------------------------------------------+ Best States ------------- Heat Dissipation 62 Coolant Potential 80 Energy Generation 43 Energy Capacity 1100 Matter Stores 300 Matter Capacity 300 Sight Range 16 Robot Scan Range 13 Terrain Scan Density 210 Armor Coverage 825 Resistance: KI 20 Reclamation Efficiency 15 Evasion (%) 64 Melee Accuracy 5 Target Analysis 6 Recoil Reduction 8 Matter Filtering 30 Stasis Canceling 2 Item Schematics ----------------- Aluminum Leg | -7/Factory | Scanalyzed Med. Armor Plating | -7/Factory | Scanalyzed Assault Cannon | -7/Factory | Scanalyzed Robot Schematics ------------------ None Fabricated ------------ Nothing Alien Tech Used ----------------- None Achievements -------------- None Challenges ------------ None Game ------ Seed MappingChargePit Manual? 0 Play Time 01:27:27 Cumulative 100.0 hours Start 2021.10.21 @ 20:27:44 End 2021.10.22 @ 01:00:09 Sessions 3 Manual Loads 0 Difficulty Rogue Special Mode None Game No. 175 Rogue 175 Adventurer 0 Explorer 0 Win Type - Total 0 Types 0/0/0/0/0/0/0/0/0 Lore% 58 Gallery% 60 Achievement% 44 Wizard Run 0 Options --------- ASCII 0 Keyboard 1 Movement Numpad Keybinds 0 Fullscreen 2 Font 18/Terminus Map View 76x50 Tactical HUD 1 Map Filters NONE Filters NONE Steam 1 RUN: 350b629e-20cc-4597-9cba-8d6a5724707e